bitfinex/quotes_ETHUSD_20241204
["timestamp","ask_amount","ask_price","bid_price","bid_amount"]
[1733296477708,0.27848445,3699.0,3698.9,2.7035]
[1733296481101,0.27848445,3699.0,3698.4,0.8114]
[1733296481434,0.7797,3699.2,3698.5,0.351537]
[1733296481640,1.3743,3699.8,3698.6,2.70372]
[1733296481838,0.8269,3699.7,3698.9,2.70343]
[1733296481998,0.8269,3699.7,3698.7,2.70362]
[1733296482624,0.8269,3699.7,3698.8,2.70357]
[1733296482796,0.7647,3699.5,3698.5,0.351537]
[1733296483006,0.7647,3699.5,3698.7,2.7036]
[1733296483212,0.7647,3699.5,3698.7,2.70358]
[1733296483431,0.7647,3699.5,3698.7,2.70359]
[1733296483601,0.7647,3699.5,3698.8,2.70356]
[1733296484539,0.7647,3699.5,3698.8,2.70352]
[1733296485239,0.7647,3699.5,3698.6,2.7037]
[1733296485447,0.7738,3699.4,3698.5,0.351537]
[1733296485748,0.7738,3699.4,3698.6,2.7037]
[1733296486243,0.7738,3699.4,3698.1,1.168851]
[1733296486601,0.7738,3699.4,3698.1,0.8181]
[1733296486903,0.7738,3699.4,3698.5,2.70373]
[1733296487211,0.7738,3699.4,3698.6,2.70372]
[1733296487807,0.7738,3699.4,3698.4,2.70384]
[1733296489004,2.70322,3699.3,3698.2,2.70394]
[1733296489205,0.7933,3699.2,3697.8,0.7685]
[1733296489537,0.7933,3699.2,3698.3,2.70391]
[1733296489743,0.7933,3699.2,3698.4,2.70383]
[1733296489944,0.7933,3699.2,3698.6,2.70368]
[1733296491044,0.7933,3699.2,3698.7,2.70362]
[1733296491466,0.7933,3699.2,3698.8,2.70352]
[1733296492354,0.7933,3699.2,3698.3,2.70391]
[1733296492652,0.7933,3699.2,3698.4,0.270391]
[1733296492851,0.7933,3699.2,3698.0,5.28238195]
[1733296492852,0.7933,3699.2,3698.0,2.70409]
[1733296493057,0.7933,3699.2,3698.1,2.70406]
[1733296493239,2.70328,3699.2,3698.1,2.70406]
[1733296493415,0.804,3699.1,3698.1,2.70406]
[1733296493627,0.804,3699.1,3697.8,3.7685]
[1733296493960,0.7641,3698.9,3698.1,2.70408]
[1733296494456,0.7651,3698.8,3697.9,3.67026669]
[1733296494958,0.7651,3698.8,3698.0,2.70414]
[1733296500262,0.7651,3698.8,3698.1,2.70408]
[1733296501929,0.7651,3698.8,3698.2,2.70401]
[1733296502326,0.7651,3698.8,3698.3,2.70394]
[1733296503070,0.55,3699.1,3698.3,2.70394]
[1733296504601,0.89545763,3699.2,3698.3,2.70394]
[1733296504602,0.89545763,3699.2,3698.3,0.270394]
[1733296504905,9.7391905,3699.5,3698.6,2.70366]
[1733296504906,7.0361005,3699.5,3698.6,2.70366]
[1733296505433,7.0361005,3699.5,3698.3,2.70391]
[1733296505702,7.0361005,3699.5,3698.5,2.70377]
[1733296505907,7.0361005,3699.5,3698.2,0.8291]
[1733296506210,0.106,3699.4,3698.2,0.8291]
[1733296506375,0.106,3699.4,3699.1,2.70328]
[1733296507982,0.55,3700.0,3699.1,2.70328]
[1733296508189,0.55,3700.0,3698.8,3.58029195]
[1733296508372,3.0,3700.6,3698.8,3.58029195]
[1733296508373,0.55,3700.2,3698.8,3.58029195]
[1733296508570,0.55,3700.2,3699.2,2.70325]
[1733296508795,0.55,3700.0,3699.2,2.70325]
[1733296509003,0.55,3700.0,3698.8,6.28383195]
[1733296509200,0.55,3700.0,3699.3,2.70314]
[1733296509499,0.55,3700.3,3699.3,2.70314]
[1733296509699,3.0,3700.6,3699.4,2.70308]
[1733296509700,0.55,3700.5,3699.4,2.70308]
[1733296509867,0.55,3700.5,3699.5,2.70304]
[1733296510302,0.55,3700.5,3699.6,2.70297]
[1733296511011,2.57829195,3700.8,3699.1,0.02703071]
[1733296511213,5.28047195,3700.8,3699.6,2.70295]
[1733296511407,5.28047195,3700.8,3699.7,2.70285]
[1733296511621,0.52804719,3700.7,3699.7,2.70285]
[1733296512102,3.23023719,3700.7,3699.7,2.70285]
[1733296512339,0.55,3700.6,3699.7,2.70285]
[1733296513008,1.13338438,3700.4,3699.7,2.70285]
[1733296513214,0.55,3700.4,3699.7,2.70285]
[1733296513535,2.70267,3700.1,3699.0,2.70336]
[1733296513739,0.55,3700.0,3699.0,2.70336]
[1733296514099,3.25271,3700.0,3699.0,2.70336]
[1733296514451,0.55,3700.0,3698.9,0.2]
[1733296514599,0.55,3700.0,3699.1,2.70333]
[1733296514798,0.43860144,3699.9,3699.1,2.70333]
[1733296515306,0.43860144,3699.9,3698.7,2.70361]
[1733296515307,0.55,3699.7,3698.7,2.70361]
[1733296515494,2.70286,3699.8,3698.7,2.70361]
[1733296515698,2.703,3699.6,3698.5,2.90378]
[1733296515928,2.70309,3699.5,3698.5,2.70378]
[1733296516107,0.55,3699.3,3698.3,0.3407392]
[1733296516469,3.25325,3699.3,3698.3,0.3407392]
[1733296516942,2.70328,3699.2,3698.2,2.70395]
[1733296517317,0.55,3699.1,3698.2,2.70395]
[1733296517630,0.55,3699.1,3698.1,2.57829195]
[1733296517631,3.25339,3699.1,3698.1,2.57829195]
[1733296517835,0.55,3699.4,3698.1,5.28237195]
[1733296518203,0.55,3699.1,3698.1,5.28237195]
[1733296518405,0.55,3699.1,3698.1,5.84060852]
[1733296519005,0.55,3699.3,3698.1,3.13652852]
[1733296519201,0.55,3699.3,3698.4,2.70386]
[1733296519602,0.55,3699.3,3698.2,2.704]
[1733296520216,0.55,3699.3,3698.1,3.13652852]
[1733296520539,1.28865344,3699.3,3698.3,2.7039]
[1733296520741,0.55,3699.3,3698.2,0.9726]
[1733296521038,0.55,3699.7,3698.7,2.70363]
[1733296521206,1.13338438,3699.8,3698.8,2.70354]
[1733296521608,4.13338438,3699.9,3698.8,2.70354]
[1733296521840,1.13338438,3699.9,3698.6,0.2]
[1733296522043,1.13338438,3700.0,3699.2,2.70328]
[1733296522242,1.13338438,3700.1,3698.9,2.60532408]
[1733296522448,0.55361741,3700.1,3699.2,2.70321]
[1733296522609,0.55361741,3700.1,3699.0,2.70343]
[1733296522810,0.55361741,3700.1,3699.2,2.70327]
[1733296523204,0.55361741,3700.1,3699.0,2.70342]
[1733296523450,0.55,3700.0,3699.0,2.70342]
[1733296523740,0.55,3699.8,3699.0,2.70342]
[1733296523943,0.55,3700.0,3699.0,2.70342]
[1733296524459,0.55,3699.8,3698.8,2.70357]
[1733296524611,0.55,3699.8,3698.9,2.70347]
[1733296524809,0.55,3699.8,3698.5,2.67828567]
[1733296525115,0.55,3699.8,3698.6,0.63876057]
[1733296525116,0.875277,3699.8,3698.6,0.63876057]
[1733296525430,0.55,3700.1,3699.0,2.70336]
[1733296525620,0.55,3700.1,3699.2,2.70324]
[1733296525821,0.55,3700.1,3698.7,0.2]
[1733296526061,0.55,3700.1,3699.2,2.70328]
[1733296526752,0.55,3700.1,3699.3,2.70316]
[1733296527252,0.55,3700.1,3699.5,2.70303]
[1733296528409,0.55,3700.1,3699.4,2.70307]
[1733296528824,0.55,3700.1,3699.0,0.812]
[1733296528825,0.27635325,3700.2,3699.0,0.812]
[1733296529056,0.27635325,3700.2,3699.3,0.2]
[1733296529255,0.27635325,3700.2,3699.8,0.7827]
[1733296529487,0.27635325,3700.2,3699.9,2.70275]
[1733296529647,0.27635325,3700.2,3699.9,0.348545]
[1733296529846,0.27635325,3700.2,3699.8,0.7827]
[1733296529847,1.13338438,3701.1,3700.1,2.70262]
[1733296530044,0.27564974,3700.8,3700.1,2.70262]
[1733296530341,1.13338438,3701.1,3700.1,2.70262]
[1733296530571,4.11085113,3701.2,3700.1,2.70262]
[1733296530847,0.55,3701.0,3699.6,0.2]
[1733296531049,0.55,3700.8,3699.7,0.93788557]
[1733296531250,0.55,3700.8,3699.9,2.70276]
[1733296531441,0.55,3700.8,3699.8,2.70284]
[1733296532082,0.55,3700.6,3699.5,3.0]
[1733296532251,0.55,3700.6,3699.7,2.70291]
[1733296532683,0.55,3700.6,3699.4,3.57579195]
[1733296532684,0.89480911,3700.6,3699.6,2.70292]
[1733296534091,0.89480911,3700.6,3699.7,2.70288]
[1733296535307,0.89480911,3700.6,3699.8,2.70282]
[1733296535451,0.89480911,3700.6,3699.9,2.70276]
[1733296535646,0.55,3700.8,3699.9,2.70276]
[1733296536499,3.25212,3700.8,3699.7,2.70289]
[1733296537300,3.25212,3700.8,3699.8,2.70283]
[1733296537996,0.55,3700.8,3699.7,0.7774]
[1733296538285,0.55,3701.0,3700.0,2.70266]
[1733296539088,0.55,3701.0,3699.8,3.11933223]
[1733296539288,0.55,3700.9,3699.8,0.41652223]
[1733296539493,0.55,3700.9,3699.8,3.11935223]
[1733296539706,12.36,3701.1,3699.0,2.77829195]
[1733296539868,0.55,3700.9,3699.0,2.67828567]
[1733296540059,0.55,3700.5,3699.3,2.7032]
[1733296540408,0.55,3700.1,3699.0,2.70342]
[1733296540555,0.55,3699.9,3699.0,2.70342]
[1733296541394,0.25269048,3699.8,3699.0,2.70342]
[1733296541596,0.55,3699.7,3698.7,2.70358]
[1733296541801,0.25268927,3699.6,3698.6,3.31704624]
[1733296542005,0.25268927,3699.5,3698.6,3.31704624]
[1733296542297,0.25268927,3699.4,3698.7,0.62208562]
[1733296542499,0.55,3699.7,3698.6,0.09999372]
[1733296542816,0.55,3699.5,3698.6,0.09999372]
[1733296543108,0.25269608,3699.4,3698.6,0.09999372]
[1733296543265,0.55,3699.6,3698.6,0.09999372]
[1733296543599,0.55,3699.4,3698.6,0.09999372]
[1733296543774,0.25269839,3699.3,3698.6,0.42268664]
[1733296543975,0.55,3699.6,3698.6,0.42268664]
[1733296544190,0.55,3699.4,3698.6,0.42268664]
[1733296544517,0.25271211,3699.3,3698.6,0.42268664]
[1733296544718,0.55,3699.5,3698.6,0.42268664]
[1733296545126,0.2527105,3699.4,3698.6,0.42268664]
[1733296545425,0.55,3699.2,3698.2,5.28228195]
[1733296545581,0.2527105,3699.1,3698.2,5.28228195]
[1733296545781,0.55,3699.3,3698.2,5.28228195]
[1733296546024,0.25271529,3699.2,3698.2,5.28228195]
[1733296546214,0.25271529,3699.1,3698.2,5.97003952]
[1733296546419,0.25271529,3699.0,3698.2,5.97003952]
[1733296546596,3.25322,3699.3,3698.2,5.97003952]
[1733296546923,0.2527112,3699.2,3698.2,5.97003952]
[1733296547129,0.2527112,3699.1,3698.2,5.97003952]
[1733296547293,0.2527112,3699.0,3698.3,0.67700332]
[1733296547488,3.25322,3699.3,3698.3,0.67700332]
[1733296547685,0.55,3699.1,3698.2,2.57829195]
[1733296547894,0.25272063,3699.0,3698.2,2.57829195]
[1733296548086,0.55,3699.1,3698.2,2.57829195]
[1733296548323,0.55,3698.9,3698.1,0.5]
[1733296548491,2.70375,3698.6,3698.1,0.5]
[1733296548700,0.55,3698.4,3698.1,0.5]
[1733296548895,0.25276632,3698.3,3698.1,0.5]
[1733296549093,3.25387,3698.4,3698.1,0.5]
[1733296549396,0.25269032,3698.3,3698.1,0.5]
[1733296550288,3.25401,3698.2,3698.1,0.5]
[1733296550897,3.579411,3698.2,3698.1,0.5]
[1733296551118,3.8320211,3698.2,3698.1,0.5]
[1733296551318,3.579411,3698.2,3698.1,0.5]
[1733296551623,3.83190373,3698.2,3698.1,0.5]
[1733296552132,0.875401,3698.2,3698.1,0.5]
[1733296552428,0.55,3698.5,3698.1,0.5]
[1733296552630,0.80247033,3698.5,3698.1,0.5]
[1733296552844,0.55,3698.3,3698.1,0.5]
[1733296553136,3.25401,3698.2,3698.1,0.5]
[1733296553637,13.81,3698.9,3698.1,0.5]
[1733296553638,8.81,3698.9,3698.1,0.5]
[1733296553839,0.25224887,3698.8,3698.1,0.5]
[1733296553992,0.25224887,3698.8,3698.1,3.07829195]
[1733296554189,0.1412,3698.8,3698.1,5.78234195]
[1733296554612,0.1412,3698.8,3698.1,3.07829195]
[1733296554816,0.1412,3698.8,3698.1,0.5]
[1733296555086,0.1412,3698.7,3698.1,0.5]
[1733296555287,2.70372,3698.6,3698.1,0.5]
[1733296555505,0.1412,3698.5,3698.1,0.5]
[1733296557349,0.55,3698.4,3698.1,0.5]
[1733296559312,0.1412,3698.5,3698.1,0.5]
[1733296561552,0.55,3698.4,3698.1,0.5]
[1733296562137,3.25388,3698.4,3698.1,0.5]
[1733296562457,0.55,3698.4,3698.1,0.5]
[1733296562618,0.1412,3698.5,3698.1,0.5]
[1733296565440,0.1412,3699.5,3698.5,2.80378372]
[1733296565727,0.1412,3699.9,3699.1,2.57829195]
[1733296565950,0.1412,3700.2,3699.3,3.53034]
[1733296566866,0.39331879,3700.2,3699.3,0.8272]
[1733296567074,0.55,3699.9,3698.7,5.28191195]
[1733296567367,1.22172667,3699.9,3698.9,2.7035]
[1733296567665,0.96960788,3699.9,3698.9,2.7035]
[1733296567891,0.25211879,3699.8,3698.9,2.7035]
[1733296568227,0.25211879,3699.7,3698.9,2.7035]
[1733296568561,0.25211879,3699.8,3698.9,2.7035]
[1733296568871,2.95488879,3700.0,3698.9,3.3744364]
[1733296569164,0.39331879,3699.9,3699.0,2.7034]
[1733296569365,0.25211879,3699.8,3699.1,2.70335]
[1733296569570,0.25211879,3699.7,3699.1,2.70335]
[1733296569765,0.25211879,3699.8,3698.8,0.09999372]
[1733296569936,0.1412,3699.9,3698.8,0.09999372]
[1733296569937,0.25211879,3699.7,3698.9,0.4005864]
[1733296570265,0.25211879,3699.6,3698.9,0.4005864]
[1733296570490,0.25211879,3699.8,3698.9,0.4005864]
[1733296570691,0.25211879,3699.7,3698.9,0.4005864]
[1733296570985,0.25211879,3699.8,3699.1,2.70334]
[1733296571153,0.1412,3699.9,3699.2,2.70325]
[1733296571354,0.25251133,3699.8,3699.2,2.70325]
[1733296571964,0.25251133,3699.8,3699.3,2.70321]
[1733296572148,0.25251133,3699.8,3699.3,0.8113]
[1733296572356,0.25251133,3700.0,3699.5,2.70305]
[1733296572658,0.25251133,3699.9,3699.3,3.51449]
[1733296572865,0.25251133,3700.0,3699.3,3.51449]
[1733296573188,0.25251133,3699.9,3699.3,3.51449]
[1733296573392,0.25251133,3700.0,3699.3,2.70319]
[1733296573684,0.25251133,3699.9,3698.9,1.2494864]
[1733296573887,0.25251133,3699.8,3698.9,3.9529664]
[1733296574205,0.25251133,3700.0,3698.9,1.2494864]
[1733296574397,0.25251133,3699.9,3699.1,2.70333]
[1733296574565,0.25251133,3699.8,3699.1,2.70333]
[1733296574894,0.25251133,3700.0,3699.1,2.70333]
[1733296575092,0.60963913,3700.0,3699.1,2.70333]
[1733296575395,0.25239852,3699.9,3698.9,1.2494864]
[1733296575609,0.25239852,3699.8,3699.1,2.57829195]
[1733296575814,3.0,3700.7,3699.3,0.87]
[1733296575815,0.1412,3700.5,3699.3,0.87]
[1733296576084,0.25236554,3700.4,3699.6,2.70298]
[1733296576293,0.25236554,3700.3,3699.6,2.70298]
[1733296576596,0.25236554,3700.2,3699.4,2.70311]
[1733296576901,0.25236554,3700.1,3699.5,2.70305]
[1733296577050,0.25236554,3700.4,3699.7,2.70286]
[1733296577247,0.25236554,3700.3,3699.7,2.70286]
[1733296577456,0.25236554,3700.2,3699.3,0.87]
[1733296577658,0.25236554,3700.4,3699.5,2.703]
[1733296577878,0.25236554,3700.3,3699.3,1.51516057]
[1733296578131,0.25236554,3700.2,3699.5,2.703]
[1733296578342,0.25236554,3700.4,3699.3,1.51516057]
[1733296578506,0.25236554,3700.3,3699.5,2.70304]
[1733296578712,0.25236554,3700.2,3699.3,1.51516057]
[1733296578912,0.25236554,3700.4,3699.5,2.703]
[1733296579126,0.25236554,3700.3,3699.5,2.703]
[1733296579331,0.25236554,3700.2,3699.4,0.70966862]
[1733296579613,0.25236554,3700.4,3699.6,2.70298]
[1733296579810,0.25236554,3700.3,3699.6,2.70298]
[1733296580024,0.25236554,3700.2,3699.6,2.70298]
[1733296580224,0.25236554,3700.4,3699.6,2.70298]
[1733296580512,0.25236554,3700.3,3699.6,3.13124486]
[1733296580731,0.25236554,3700.2,3699.6,3.13124486]
[1733296580938,0.25236554,3700.4,3699.6,3.13124486]
[1733296581142,0.25236554,3700.3,3699.6,3.13124486]
[1733296581352,0.25236554,3700.2,3699.6,3.13124486]
[1733296581523,0.25236554,3700.4,3699.6,3.13124486]
[1733296581723,0.25236554,3700.3,3699.6,3.13124486]
[1733296582036,0.25236554,3700.2,3699.6,3.13124486]
[1733296582215,0.25236554,3700.4,3699.6,3.13124486]
[1733296582414,0.25236554,3700.3,3699.6,0.42826486]
[1733296582614,0.39356554,3700.2,3699.6,0.42826486]
[1733296582853,0.1412,3700.2,3699.4,0.70966862]
[1733296583017,0.1412,3700.2,3699.2,0.09999372]
[1733296583018,0.25236554,3700.1,3699.0,0.8747]
[1733296583214,3.0,3700.6,3699.0,0.8747]
[1733296583215,3.09626554,3700.0,3699.0,2.70341]
[1733296583414,0.25236554,3699.9,3698.9,0.50058012]
[1733296583725,0.25236554,3699.9,3699.1,2.70332]
[1733296584056,0.25236554,3699.8,3699.1,2.70332]
[1733296584207,0.25236554,3699.9,3699.1,2.70332]
[1733296584413,0.25236554,3699.8,3698.9,2.70348]
[1733296584607,0.25236554,3699.7,3698.9,3.32377657]
[1733296584852,2.70279,3699.9,3698.9,3.32377657]
[1733296585154,0.25236554,3699.8,3698.9,3.32377657]
[1733296585350,0.25236554,3699.7,3698.9,3.32377657]
[1733296585527,0.25236554,3699.6,3698.9,3.32377657]
[1733296585730,0.25236554,3699.8,3699.0,0.67232685]
[1733296585976,0.25236554,3699.7,3699.0,0.67232685]
[1733296586119,0.25236554,3699.6,3699.0,0.67232685]
[1733296586467,0.25236554,3700.0,3699.2,2.70326]
[1733296586613,0.25236554,3700.0,3699.0,0.67232685]
[1733296586614,0.25236554,3699.9,3699.3,2.7032]
[1733296586958,0.25236554,3699.8,3699.4,2.70307]
[1733296587260,0.25236554,3699.7,3699.4,2.70307]
[1733296587555,2.7024,3700.5,3699.3,1.14295269]
[1733296587556,0.25236554,3700.3,3699.5,2.70305]
[1733296587714,0.25236554,3700.2,3699.5,2.70305]
[1733296587911,0.25236554,3700.1,3699.3,1.24294641]
[1733296588139,0.25236554,3700.0,3699.3,3.94612641]
[1733296588458,0.25236554,3699.9,3699.3,3.94612641]
[1733296588659,0.25236554,3699.8,3699.3,1.24294641]
[1733296588827,0.25236554,3699.7,3699.5,2.70305]
[1733296589032,0.25236554,3700.4,3699.5,2.70305]
[1733296589214,0.54784209,3700.3,3699.5,2.70305]
[1733296589562,0.25236554,3700.2,3699.3,3.60857372]
[1733296589773,0.25236554,3700.1,3699.3,3.60857372]
[1733296589919,0.25236554,3700.0,3699.3,3.60857372]
[1733296590122,0.25236554,3699.9,3699.4,2.70314]
[1733296590422,0.25236554,3699.8,3699.4,2.70314]
[1733296590622,0.25236554,3699.7,3699.4,2.70314]
[1733296590848,0.25236554,3700.2,3699.4,2.70314]
[1733296591015,0.25236554,3700.1,3699.4,2.70314]
[1733296591221,0.25236554,3700.0,3699.4,2.70314]
[1733296591545,0.25236554,3699.9,3699.4,2.70314]
[1733296591731,0.25236554,3699.8,3699.0,0.67232685]
[1733296591931,0.25236554,3699.7,3698.9,3.77438372]
[1733296592147,0.25236554,3699.6,3698.9,3.67439]
[1733296592322,0.25236554,3699.5,3698.9,3.77438372]
[1733296592524,0.25236554,3699.4,3699.0,2.70342]
[1733296592861,2.70274,3700.0,3699.0,2.70342]
[1733296593061,0.52305446,3699.9,3698.5,4.0015]
[1733296593226,2.70298,3699.7,3698.6,2.70371]
[1733296593425,0.25278046,3699.6,3698.6,2.70371]
[1733296593671,0.25278046,3699.5,3698.5,4.0015]
[1733296593832,1.1323808,3700.2,3698.9,0.09999372]
[1733296593833,0.25278046,3699.4,3698.9,0.09999372]
[1733296594019,0.25278046,3699.3,3698.9,0.09999372]
[1733296594226,0.25278046,3699.2,3698.9,0.09999372]
[1733296594415,0.25305627,3699.1,3698.7,0.09999372]
[1733296594717,2.70259,3700.2,3698.6,2.70372]
[1733296594718,2.70292,3699.7,3698.6,2.70372]
[1733296594916,0.52336212,3699.6,3698.8,0.09999372]
[1733296595123,0.25307012,3699.5,3698.8,0.09999372]
[1733296595425,0.25307012,3699.4,3698.6,2.70372]
[1733296595724,0.25307012,3699.3,3698.6,2.70372]
[1733296595924,0.25307012,3699.2,3698.6,2.70372]
[1733296596233,0.25307012,3699.1,3698.5,1.0015]
[1733296596451,0.25307012,3699.0,3698.3,0.09999372]
[1733296596623,0.25307012,3698.9,3698.2,0.7517]
[1733296596819,0.25327351,3698.8,3698.1,0.5]
[1733296597028,0.25327351,3698.7,3698.1,0.5]
[1733296597264,0.25327351,3698.6,3698.1,0.5]
[1733296597446,2.95709351,3698.5,3698.1,0.5]
[1733296597652,2.95715351,3698.4,3698.1,0.5]
[1733296597930,1.1323808,3699.3,3698.1,0.5]
[1733296597931,3.25295886,3698.3,3698.1,0.5]
[1733296598135,0.25327351,3698.2,3698.1,0.5]
[1733296600830,0.25327351,3698.5,3698.1,0.5]
[1733296601135,0.25327351,3698.4,3698.1,0.5]
[1733296601333,0.25327351,3698.3,3698.1,0.5]
[1733296601530,0.25327351,3698.5,3698.1,0.5]
[1733296601873,0.25327351,3698.4,3698.1,0.5]
[1733296602176,0.25327351,3698.3,3698.1,0.5]
[1733296602467,0.25327351,3698.5,3698.1,0.5]
[1733296602668,0.25327351,3698.4,3698.1,0.5]
[1733296602829,0.25327351,3698.5,3698.1,0.5]
[1733296603143,0.25327351,3698.4,3698.1,0.5]
[1733296603342,2.70373,3698.6,3698.1,0.5]
[1733296603343,0.25327351,3698.5,3698.1,0.5]
[1733296603546,0.25327351,3698.4,3698.1,0.5]
[1733296603728,0.25327351,3698.5,3698.1,0.5]
[1733296603928,0.25327351,3698.4,3698.1,0.5]
[1733296604151,0.25327351,3698.5,3698.1,0.5]
[1733296605564,0.570373,3698.6,3698.1,0.5]
[1733296605761,0.82364651,3698.6,3698.1,0.5]
[1733296606091,0.570373,3698.6,3698.1,0.5]
[1733296606303,0.82364651,3698.6,3698.1,0.5]
[1733296607095,0.25327351,3698.5,3698.1,0.5]
[1733296607451,0.82364651,3698.6,3698.1,0.5]
[1733296608030,0.25327351,3698.5,3698.1,0.5]
[1733296611395,0.25327351,3698.4,3698.1,0.5]
[1733296611591,0.25327351,3698.5,3698.1,0.5]
[1733296611815,0.25327351,3698.4,3698.1,0.5]
[1733296612013,3.274103,3698.6,3698.1,0.5]
[1733296612014,0.25327351,3698.5,3698.1,0.5]
[1733296613414,0.25327351,3698.5,3698.1,1.2825]
[1733296613580,0.25327351,3698.6,3698.2,5.28230195]
[1733296613793,0.25243682,3699.1,3698.4,2.70386]
[1733296613997,0.27476064,3699.3,3698.7,0.7766]
[1733296613998,0.25243682,3699.0,3698.7,0.7766]
[1733296614304,0.25243682,3699.2,3698.7,0.7766]
[1733296614509,0.25245825,3699.5,3698.7,0.7766]
[1733296614712,0.25245825,3699.4,3698.7,0.7766]
[1733296614896,0.25245825,3699.3,3698.7,0.7766]
[1733296615101,0.25245825,3699.2,3698.7,0.7766]
[1733296615275,0.25245825,3699.1,3698.7,0.7766]
[1733296615471,0.25245825,3699.4,3698.7,0.7766]
[1733296615676,0.25245825,3699.3,3698.7,0.7766]
[1733296615915,0.25245825,3699.2,3698.7,0.7766]
[1733296616082,0.25245825,3699.1,3698.7,0.7766]
[1733296616290,0.27483109,3699.8,3698.7,0.7766]
[1733296616291,0.25245825,3699.0,3698.7,0.7766]
[1733296616482,2.70321,3699.3,3698.7,0.7766]
[1733296616687,0.25245825,3699.2,3698.7,0.7766]
[1733296616902,0.25245825,3699.1,3698.7,0.7766]
[1733296617084,0.25245825,3699.0,3698.7,0.7766]
[1733296617291,0.25245825,3698.9,3698.7,0.7766]
[1733296617501,0.25245825,3699.2,3698.7,0.7766]
[1733296617818,0.25245825,3699.1,3698.7,0.7766]
[1733296618035,0.25256107,3699.0,3698.4,3.50116]
[1733296618307,0.25256107,3698.9,3698.4,3.50116]
[1733296618615,0.25256107,3699.3,3698.4,3.93350021]
[1733296618786,0.25256107,3699.2,3698.5,2.70378]
[1733296618986,0.25256107,3699.1,3698.6,2.70369]
[1733296619213,0.25256107,3699.0,3698.4,1.22964021]
[1733296619399,2.97774109,3699.8,3698.5,2.77829195]
[1733296619599,3.6634845,3699.7,3698.9,0.7757]
[1733296619817,0.25266451,3699.6,3698.9,0.7757]
[1733296620017,0.25266451,3699.5,3698.9,0.7757]
[1733296620309,0.25266451,3699.4,3698.9,0.7757]
[1733296620520,0.25266451,3699.3,3698.9,0.7757]
[1733296620686,0.25266451,3699.2,3698.9,0.7757]
[1733296620889,0.25271821,3699.1,3698.9,0.7757]
[1733296621097,0.25271821,3699.0,3698.9,0.7757]
[1733296621879,8.81,3700.2,3698.9,1.22363172]
[1733296622099,2.95548366,3700.1,3699.0,0.09999372]
[1733296622305,0.25279366,3700.0,3699.0,0.09999372]
[1733296622616,0.25279366,3699.9,3699.1,3.45742]
[1733296623891,0.27454693,3700.4,3700.3,5.28077195]
[1733296624085,2.70164,3701.5,3700.3,2.57829195]
[1733296624424,0.52285028,3701.4,3700.4,2.70238]
[1733296624606,0.25268628,3701.3,3700.4,2.70238]
[1733296624932,0.25268628,3701.2,3700.4,2.70238]
[1733296625226,0.25268628,3701.1,3700.4,2.70238]
[1733296625388,0.25268628,3701.3,3700.4,2.70238]
[1733296625588,0.87513531,3701.2,3700.3,2.57829195]
[1733296625812,3.270164,3701.4,3700.7,2.70216]
[1733296625813,0.25268628,3701.1,3700.7,2.70216]
[1733296626020,0.25268628,3701.3,3700.7,2.70216]
[1733296626211,2.95406628,3701.8,3700.7,2.70216]
[1733296626406,0.25268628,3701.7,3700.7,2.70216]
[1733296626603,0.57556428,3701.6,3700.7,2.70216]
[1733296626808,0.322878,3701.6,3700.7,2.70216]
[1733296627013,0.57556428,3701.6,3700.7,2.70216]
[1733296627215,0.322878,3701.6,3700.7,2.70216]
[1733296627437,0.57474122,3701.6,3700.8,2.70211]
[1733296627807,0.57474122,3701.6,3700.7,2.70215]
[1733296628145,0.57474122,3701.6,3700.9,2.70203]
[1733296628504,0.52657699,3701.9,3700.9,2.70203]
[1733296629535,0.52657699,3701.9,3700.6,0.91229372]
[1733296629715,2.70155,3701.6,3700.6,0.8123]
[1733296629895,0.270155,3701.5,3700.6,0.8123]
[1733296630323,2.971775,3701.5,3700.5,2.70231]
[1733296631411,2.70171,3701.4,3700.3,6.30855195]
[1733296632528,2.70171,3701.4,3700.4,0.09999372]
[1733296632735,2.70171,3701.4,3700.3,6.30855195]
[1733296632906,0.2971865,3701.3,3700.3,6.30855195]
[1733296633103,0.2971865,3701.3,3700.4,0.09999372]
[1733296633308,0.25122742,3701.7,3700.6,2.70219]
[1733296633502,0.25122742,3701.7,3700.4,2.80239372]
[1733296633503,2.70153,3701.6,3700.4,2.80239372]
[1733296633723,5.95285742,3701.5,3700.4,2.80239372]
[1733296634013,2.70163,3701.5,3700.4,2.80239372]
[1733296634218,3.0,3701.8,3700.3,0.8278]
[1733296634423,3.0,3701.5,3700.0,0.86049372]
[1733296634626,3.0,3701.4,3700.3,2.70248]
[1733296634952,3.0,3701.6,3700.5,2.70228]
[1733296635146,0.25119577,3701.5,3700.5,2.70228]
[1733296635308,0.25119577,3701.5,3700.5,2.70232]
[1733296635514,0.25119577,3701.5,3700.6,0.7761]
[1733296635714,3.0,3701.5,3700.6,0.7761]
[1733296635915,0.59527358,3701.4,3700.6,0.7761]
[1733296636761,3.29697358,3701.4,3700.6,0.7761]
[1733296636918,3.0,3701.8,3700.3,0.2]
[1733296636919,2.70181,3701.3,3700.3,0.2]
[1733296637117,3.0,3701.8,3700.3,0.2]
[1733296637317,3.0,3701.6,3700.5,0.2]
[1733296637541,0.25120813,3701.5,3700.7,2.70218]
[1733296637816,3.0,3701.8,3700.8,3.47821]
[1733296638017,0.59760438,3701.7,3700.8,3.47821]
[1733296638217,0.59760438,3701.7,3700.9,2.70203]
[1733296639256,0.59760438,3701.7,3700.8,0.7761]
[1733296639459,0.84887255,3701.7,3700.8,0.7761]
[1733296639632,3.0,3701.7,3700.8,3.47821]
[1733296640324,0.25133431,3701.6,3700.8,0.7761]
[1733296640543,3.25133431,3701.6,3700.8,0.7761]
[1733296640742,3.25133431,3701.6,3700.4,0.09999372]
[1733296640743,2.70168,3701.4,3700.2,2.70253]